[Event "Titled Tuesday Blitz December 27 Early 2022"]
[White "Troltenier, Dirk"]
[Black "Gabdrakhmanov, Azat"]
[WhiteFideId "4606400"]
[BlackFideId "34189197"]
[WhiteElo "2234"]
[BlackElo "2316"]
[Result "0-1"]
[Round "02"]
[TimeControl "180+2"]
[Date "2022.12.27"]
[WhiteClock "0:00:02"]
[BlackClock "0:01:01"]

1. e4 {[%clk 0:03:00]}  c5 {[%clk 0:03:00]} 2. c3 {[%clk 0:03:00]}  d5 {[%clk 0:02:59]} 3. exd5 {[%clk 0:03:00]}  Qxd5 {[%clk 0:03:00]} 4. d4 {[%clk 0:03:00]}  e6 {[%clk 0:03:00]} 5. Nf3 {[%clk 0:03:00]}  Nf6 {[%clk 0:03:00]} 6. Bd3 {[%clk 0:03:00]}  Nc6 {[%clk 0:03:00]} 7. O-O {[%clk 0:02:59]}  cxd4 {[%clk 0:03:00]} 8. cxd4 {[%clk 0:02:56]}  Be7 {[%clk 0:03:01]} 9. Nc3 {[%clk 0:02:57]}  Qd6 {[%clk 0:03:01]} 10. Be3 {[%clk 0:02:49]}  O-O {[%clk 0:03:01]} 11. Qe2 {[%clk 0:02:46]}  b6 {[%clk 0:02:51]} 12. Rad1 {[%clk 0:02:36]}  Bb7 {[%clk 0:02:50]} 13. a3 {[%clk 0:02:25]}  Rad8 {[%clk 0:02:49]} 14. Rfe1 {[%clk 0:02:22]}  Ng4 {[%clk 0:02:46]} 15. Bxh7+ {[%clk 0:01:38]}  Kxh7 {[%clk 0:02:39]} 16. Ng5+ {[%clk 0:01:38]}  Bxg5 {[%clk 0:02:38]} 17. Qxg4 {[%clk 0:01:38]}  Be7 {[%clk 0:02:23]} 18. d5 {[%clk 0:01:24]}  exd5 {[%clk 0:02:15]} 19. Nxd5 {[%clk 0:01:19]}  Qg6 {[%clk 0:02:09]} 20. Qf3 {[%clk 0:00:48]}  Bd6 {[%clk 0:01:50]} 21. Qh3+ {[%clk 0:00:19]}  Kg8 {[%clk 0:01:48]} 22. Bf4 {[%clk 0:00:17]}  Bxf4 {[%clk 0:01:39]} 23. Nxf4 {[%clk 0:00:16]}  Qe4 {[%clk 0:01:33]} 24. Nh5 {[%clk 0:00:09]}  Rxd1 {[%clk 0:01:29]} 25. Rxd1 {[%clk 0:00:08]}  Ne5 {[%clk 0:01:26]} 26. Qg3 {[%clk 0:00:07]}  Ng6 {[%clk 0:01:24]} 27. h4 {[%clk 0:00:05]}  Qxh4 {[%clk 0:01:19]} 28. Qxh4 {[%clk 0:00:05]}  Nxh4 {[%clk 0:01:19]} 29. Rd7 {[%clk 0:00:06]}  Bxg2 {[%clk 0:01:15]} 30. Rxa7 {[%clk 0:00:06]}  Bf3 {[%clk 0:01:12]} 31. Nf4 {[%clk 0:00:06]}  Rd8 {[%clk 0:01:08]} 32. Kh2 {[%clk 0:00:06]}  g5 {[%clk 0:01:08]} 33. Nh3 {[%clk 0:00:03]}  f6 {[%clk 0:01:07]} 34. Kg3 {[%clk 0:00:02]}  Be4 {[%clk 0:01:06]} 35. Ra6 {[%clk 0:00:01]}  Rd3+ {[%clk 0:01:05]} 36. Kh2 {[%clk 0:00:01]}  Nf3+ {[%clk 0:01:02]} 37. Kg3 {[%clk 0:00:02]}  Ne5+ {[%clk 0:01:02]} 38. Kh2 {[%clk 0:00:02]}  Ng4+ {[%clk 0:01:01]} 0-1


[Site "https://www.chess.com"]

[Event "Titled Tuesday Blitz December 27 Early 2022"]
[White "Turzo, Attila"]
[Black "Boros, Denes"]
[WhiteFideId "704954"]
[BlackFideId "722340"]
[WhiteElo "2279"]
[BlackElo "2406"]
[Result "0-1"]
[Round "02"]
[TimeControl "180+2"]
[Date "2022.12.27"]
[WhiteClock "0:00:41"]
[BlackClock "0:01:14"]

1. d4 {[%clk 0:03:00]}  g6 {[%clk 0:03:00]} 2. c4 {[%clk 0:02:58]}  Bg7 {[%clk 0:02:59]} 3. e4 {[%clk 0:02:58]}  d6 {[%clk 0:02:52]} 4. Nc3 {[%clk 0:02:49]}  Nc6 {[%clk 0:02:51]} 5. Be3 {[%clk 0:02:46]}  a6 {[%clk 0:02:49]} 6. Nf3 {[%clk 0:02:37]}  Bg4 {[%clk 0:02:47]} 7. Be2 {[%clk 0:02:37]}  Nf6 {[%clk 0:02:46]} 8. Ng1 {[%clk 0:02:32]}  Bd7 {[%clk 0:02:46]} 9. Nf3 {[%clk 0:02:26]}  O-O {[%clk 0:02:45]} 10. h3 {[%clk 0:02:13]}  e5 {[%clk 0:02:38]} 11. dxe5 {[%clk 0:02:10]}  Nxe5 {[%clk 0:02:31]} 12. Nxe5 {[%clk 0:02:01]}  dxe5 {[%clk 0:02:31]} 13. O-O {[%clk 0:02:00]}  h6 {[%clk 0:02:23]} 14. c5 {[%clk 0:01:52]}  Kh7 {[%clk 0:02:13]} 15. b4 {[%clk 0:01:41]}  Qc8 {[%clk 0:02:04]} 16. a4 {[%clk 0:01:25]}  Ng8 {[%clk 0:01:45]} 17. Bc4 {[%clk 0:01:00]}  Nf6 {[%clk 0:01:32]} 18. Be2 {[%clk 0:00:53]}  Re8 {[%clk 0:01:31]} 19. Qc2 {[%clk 0:00:47]}  Ng8 {[%clk 0:01:23]} 20. Rfd1 {[%clk 0:00:46]}  Ne7 {[%clk 0:01:22]} 21. Nd5 {[%clk 0:00:44]}  Nxd5 {[%clk 0:01:17]} 22. exd5 {[%clk 0:00:44]}  Bf5 {[%clk 0:01:16]} 23. Rac1 {[%clk 0:00:41]}  Bxc2 {[%clk 0:01:14]} 0-1


[Site "https://www.chess.com"]

[Event "Titled Tuesday Blitz December 27 Early 2022"]
[White "Usmanov, Vasily"]
[Black "Tymrakiewicz, Rafal"]
[WhiteFideId "4135741"]
[BlackFideId "1108832"]
[WhiteElo "2450"]
[BlackElo "2144"]
[Result "1-0"]
[Round "02"]
[TimeControl "180+2"]
[Date "2022.12.27"]
[WhiteClock "0:00:24"]
[BlackClock "0:00:04"]

1. d4 {[%clk 0:02:54]}  Nf6 {[%clk 0:02:59]} 2. c4 {[%clk 0:02:50]}  d6 {[%clk 0:02:59]} 3. Nc3 {[%clk 0:02:49]}  e5 {[%clk 0:02:59]} 4. Nf3 {[%clk 0:02:49]}  Nc6 {[%clk 0:02:59]} 5. dxe5 {[%clk 0:02:48]}  dxe5 {[%clk 0:02:57]} 6. Qxd8+ {[%clk 0:02:49]}  Kxd8 {[%clk 0:02:56]} 7. Bg5 {[%clk 0:02:48]}  Be6 {[%clk 0:02:52]} 8. O-O-O+ {[%clk 0:02:47]}  Kc8 {[%clk 0:02:21]} 9. Bxf6 {[%clk 0:02:42]}  gxf6 {[%clk 0:02:21]} 10. e3 {[%clk 0:02:36]}  f5 {[%clk 0:01:46]} 11. g3 {[%clk 0:02:26]}  e4 {[%clk 0:01:42]} 12. Nh4 {[%clk 0:02:19]}  Ne5 {[%clk 0:01:39]} 13. Bh3 {[%clk 0:02:06]}  Nd3+ {[%clk 0:01:32]} 14. Rxd3 {[%clk 0:02:00]}  exd3 {[%clk 0:01:33]} 15. Bxf5 {[%clk 0:02:00]}  Be7 {[%clk 0:01:25]} 16. Bxe6+ {[%clk 0:01:53]}  fxe6 {[%clk 0:01:24]} 17. Ng2 {[%clk 0:01:54]}  e5 {[%clk 0:01:18]} 18. Rd1 {[%clk 0:01:45]}  Rd8 {[%clk 0:01:12]} 19. Nd5 {[%clk 0:01:42]}  Rd7 {[%clk 0:01:07]} 20. Rxd3 {[%clk 0:01:39]}  c6 {[%clk 0:01:07]} 21. Nxe7+ {[%clk 0:01:38]}  Rxe7 {[%clk 0:01:08]} 22. Kd2 {[%clk 0:01:10]}  e4 {[%clk 0:00:59]} 23. Rd4 {[%clk 0:01:07]}  Kc7 {[%clk 0:00:59]} 24. Nf4 {[%clk 0:01:05]}  Rd8 {[%clk 0:00:56]} 25. Kc3 {[%clk 0:01:05]}  Rxd4 {[%clk 0:00:30]} 26. Kxd4 {[%clk 0:01:01]}  Rd7+ {[%clk 0:00:30]} 27. Kxe4 {[%clk 0:01:02]}  Rd2 {[%clk 0:00:29]} 28. Nd3 {[%clk 0:01:01]}  Kd6 {[%clk 0:00:27]} 29. c5+ {[%clk 0:00:59]}  Ke6 {[%clk 0:00:25]} 30. g4 {[%clk 0:00:58]}  Kf6 {[%clk 0:00:11]} 31. h4 {[%clk 0:00:57]}  h6 {[%clk 0:00:11]} 32. f4 {[%clk 0:00:55]}  Kg6 {[%clk 0:00:11]} 33. Ne5+ {[%clk 0:00:53]}  Kg7 {[%clk 0:00:11]} 34. Nd3 {[%clk 0:00:50]}  Kf6 {[%clk 0:00:10]} 35. g5+ {[%clk 0:00:29]}  hxg5 {[%clk 0:00:11]} 36. hxg5+ {[%clk 0:00:29]}  Kg6 {[%clk 0:00:11]} 37. a4 {[%clk 0:00:29]}  a5 {[%clk 0:00:10]} 38. Ne5+ {[%clk 0:00:28]}  Kg7 {[%clk 0:00:10]} 39. Nc4 {[%clk 0:00:29]}  Rd5 {[%clk 0:00:06]} 40. Nxa5 {[%clk 0:00:26]}  Rxc5 {[%clk 0:00:05]} 41. Nxb7 {[%clk 0:00:27]}  Rc4+ {[%clk 0:00:06]} 42. Kf5 {[%clk 0:00:27]}  Rxa4 {[%clk 0:00:04]} 43. e4 {[%clk 0:00:25]}  Rb4 {[%clk 0:00:04]} 44. Nd8 {[%clk 0:00:24]} 1-0


[Site "https://www.chess.com"]

[Event "Titled Tuesday Blitz December 27 Early 2022"]
[White "Vlassov, Nikolai"]
[Black "Zierk, Steven"]
[WhiteFideId "4103360"]
[BlackFideId "2034255"]
[WhiteElo "2283"]
[BlackElo "2488"]
[Result "0-1"]
[Round "02"]
[TimeControl "180+2"]
[Date "2022.12.27"]
[WhiteClock "0:00:03"]
[BlackClock "0:00:15"]

1. e4 {[%clk 0:03:00]}  e6 {[%clk 0:03:00]} 2. d4 {[%clk 0:03:00]}  d5 {[%clk 0:03:00]} 3. exd5 {[%clk 0:03:00]}  exd5 {[%clk 0:03:01]} 4. Nf3 {[%clk 0:03:00]}  Nc6 {[%clk 0:03:00]} 5. Bd3 {[%clk 0:03:00]}  Bd6 {[%clk 0:03:00]} 6. O-O {[%clk 0:02:59]}  Nge7 {[%clk 0:02:57]} 7. Re1 {[%clk 0:02:59]}  Bg4 {[%clk 0:02:57]} 8. c3 {[%clk 0:02:59]}  Qd7 {[%clk 0:02:56]} 9. Nbd2 {[%clk 0:02:59]}  O-O-O {[%clk 0:02:55]} 10. b4 {[%clk 0:02:58]}  Rde8 {[%clk 0:02:53]} 11. b5 {[%clk 0:02:57]}  Nd8 {[%clk 0:02:53]} 12. Qa4 {[%clk 0:02:57]}  Kb8 {[%clk 0:02:51]} 13. Ne5 {[%clk 0:02:56]}  Bxe5 {[%clk 0:02:51]} 14. dxe5 {[%clk 0:02:57]}  Bf5 {[%clk 0:02:47]} 15. Bf1 {[%clk 0:02:56]}  Ng6 {[%clk 0:02:44]} 16. Nf3 {[%clk 0:02:44]}  Be4 {[%clk 0:02:32]} 17. Be3 {[%clk 0:02:41]}  b6 {[%clk 0:02:32]} 18. Nd4 {[%clk 0:02:12]}  Nxe5 {[%clk 0:02:29]} 19. f3 {[%clk 0:02:02]}  Bg6 {[%clk 0:02:06]} 20. Bf4 {[%clk 0:01:59]}  Nd3 {[%clk 0:01:57]} 21. Nc6+ {[%clk 0:01:44]}  Nxc6 {[%clk 0:01:56]} 22. bxc6 {[%clk 0:01:45]}  Qc8 {[%clk 0:01:51]} 23. Bxd3 {[%clk 0:01:29]}  Bxd3 {[%clk 0:01:51]} 24. Qd4 {[%clk 0:01:23]}  Qf5 {[%clk 0:01:47]} 25. g4 {[%clk 0:01:04]}  Qf6 {[%clk 0:01:30]} 26. Qxd3 {[%clk 0:00:41]}  Qxc6 {[%clk 0:01:25]} 27. Bg3 {[%clk 0:00:33]}  Kb7 {[%clk 0:01:21]} 28. Kg2 {[%clk 0:00:32]}  h5 {[%clk 0:01:13]} 29. Rxe8 {[%clk 0:00:30]}  Rxe8 {[%clk 0:01:13]} 30. gxh5 {[%clk 0:00:30]}  Rh8 {[%clk 0:01:10]} 31. Re1 {[%clk 0:00:22]}  Qc5 {[%clk 0:01:04]} 32. Re5 {[%clk 0:00:20]}  Rd8 {[%clk 0:01:02]} 33. h4 {[%clk 0:00:16]}  Rd7 {[%clk 0:00:57]} 34. Qe3 {[%clk 0:00:16]}  Qa3 {[%clk 0:00:55]} 35. Qd4 {[%clk 0:00:15]}  Qxa2+ {[%clk 0:00:55]} 36. Kh3 {[%clk 0:00:14]}  a5 {[%clk 0:00:48]} 37. Qg4 {[%clk 0:00:14]}  Rd6 {[%clk 0:00:36]} 38. Re7 {[%clk 0:00:14]}  Rc6 {[%clk 0:00:33]} 39. Qf4 {[%clk 0:00:14]}  Qc4 {[%clk 0:00:21]} 40. Rxf7 {[%clk 0:00:13]}  a4 {[%clk 0:00:20]} 41. Rxg7 {[%clk 0:00:12]}  a3 {[%clk 0:00:18]} 42. Qf5 {[%clk 0:00:09]}  a2 {[%clk 0:00:17]} 43. Rg8 {[%clk 0:00:10]}  Qf1+ {[%clk 0:00:16]} 44. Kg4 {[%clk 0:00:09]}  Rc4+ {[%clk 0:00:14]} 45. Kg5 {[%clk 0:00:10]}  Qc1+ {[%clk 0:00:14]} 46. Bf4 {[%clk 0:00:09]}  Qxf4+ {[%clk 0:00:13]} 47. Qxf4 {[%clk 0:00:09]}  Rxf4 {[%clk 0:00:14]} 48. Kxf4 {[%clk 0:00:09]}  a1=Q {[%clk 0:00:15]} 49. h6 {[%clk 0:00:10]}  Qc1+ {[%clk 0:00:15]} 50. Kf5 {[%clk 0:00:10]}  Qxh6 {[%clk 0:00:16]} 51. Rg4 {[%clk 0:00:10]}  Qf8+ {[%clk 0:00:15]} 52. Ke5 {[%clk 0:00:10]}  Qxf3 {[%clk 0:00:16]} 53. Rg5 {[%clk 0:00:10]}  Qxc3+ {[%clk 0:00:15]} 54. Kxd5 {[%clk 0:00:10]}  Qh3 {[%clk 0:00:15]} 55. h5 {[%clk 0:00:08]}  b5 {[%clk 0:00:16]} 56. Ke5 {[%clk 0:00:08]}  b4 {[%clk 0:00:16]} 57. Kf6 {[%clk 0:00:08]}  b3 {[%clk 0:00:16]} 58. Rb5+ {[%clk 0:00:08]}  Kc6 {[%clk 0:00:16]} 59. Rb8 {[%clk 0:00:07]}  Qxh5 {[%clk 0:00:15]} 60. Rxb3 {[%clk 0:00:07]}  Qh4+ {[%clk 0:00:15]} 61. Ke5 {[%clk 0:00:07]}  Qc4 {[%clk 0:00:14]} 62. Rh3 {[%clk 0:00:05]}  Kc5 {[%clk 0:00:15]} 63. Rh7 {[%clk 0:00:05]}  Qd4+ {[%clk 0:00:14]} 64. Ke6 {[%clk 0:00:03]}  Qe4+ {[%clk 0:00:15]} 0-1


[Site "https://www.chess.com"]

[Event "Titled Tuesday Blitz December 27 Early 2022"]
[White "White, John S."]
[Black "Melikhov, Evgeny V."]
[WhiteFideId "2502348"]
[BlackFideId "4122046"]
[WhiteElo "2235"]
[BlackElo "2269"]
[Result "0-1"]
[Round "02"]
[TimeControl "180+2"]
[Date "2022.12.27"]
[WhiteClock "0:00:06"]
[BlackClock "0:00:39"]

1. e4 {[%clk 0:02:56]}  c5 {[%clk 0:02:59]} 2. Nf3 {[%clk 0:02:54]}  d6 {[%clk 0:02:59]} 3. c3 {[%clk 0:02:53]}  Nf6 {[%clk 0:02:58]} 4. Be2 {[%clk 0:02:53]}  Bd7 {[%clk 0:02:58]} 5. d3 {[%clk 0:02:49]}  Bc6 {[%clk 0:02:58]} 6. O-O {[%clk 0:02:48]}  Nbd7 {[%clk 0:02:57]} 7. Re1 {[%clk 0:02:48]}  e6 {[%clk 0:02:56]} 8. Bf1 {[%clk 0:02:46]}  Be7 {[%clk 0:02:54]} 9. Qc2 {[%clk 0:02:40]}  O-O {[%clk 0:02:50]} 10. Nbd2 {[%clk 0:02:38]}  Qc7 {[%clk 0:02:45]} 11. Nc4 {[%clk 0:02:36]}  b5 {[%clk 0:02:42]} 12. Ne3 {[%clk 0:02:34]}  a6 {[%clk 0:02:41]} 13. a3 {[%clk 0:02:24]}  c4 {[%clk 0:02:34]} 14. dxc4 {[%clk 0:02:17]}  Bxe4 {[%clk 0:02:33]} 15. Qe2 {[%clk 0:02:05]}  bxc4 {[%clk 0:02:30]} 16. Nxc4 {[%clk 0:01:58]}  d5 {[%clk 0:02:25]} 17. Ncd2 {[%clk 0:01:52]}  Bg6 {[%clk 0:02:23]} 18. Ne5 {[%clk 0:01:39]}  Nxe5 {[%clk 0:02:22]} 19. Qxe5 {[%clk 0:01:38]}  Qxe5 {[%clk 0:02:22]} 20. Rxe5 {[%clk 0:01:36]}  Rfc8 {[%clk 0:02:17]} 21. Nf3 {[%clk 0:01:32]}  Ne4 {[%clk 0:02:08]} 22. Bd3 {[%clk 0:01:21]}  Bf6 {[%clk 0:02:05]} 23. Bxe4 {[%clk 0:01:16]}  Bxe4 {[%clk 0:02:04]} 24. Rh5 {[%clk 0:01:13]}  Bg6 {[%clk 0:01:51]} 25. Rh3 {[%clk 0:01:11]}  a5 {[%clk 0:01:44]} 26. Be3 {[%clk 0:01:06]}  Rcb8 {[%clk 0:01:39]} 27. Bd4 {[%clk 0:00:49]}  Bxd4 {[%clk 0:01:35]} 28. Nxd4 {[%clk 0:00:49]}  Rxb2 {[%clk 0:01:34]} 29. Re3 {[%clk 0:00:45]}  Rab8 {[%clk 0:01:27]} 30. h3 {[%clk 0:00:40]}  Rb1+ {[%clk 0:01:23]} 31. Re1 {[%clk 0:00:38]}  Rxe1+ {[%clk 0:01:21]} 32. Rxe1 {[%clk 0:00:37]}  Rb2 {[%clk 0:01:19]} 33. Ra1 {[%clk 0:00:30]}  Kf8 {[%clk 0:01:16]} 34. Kf1 {[%clk 0:00:28]}  Ke8 {[%clk 0:01:11]} 35. Ke1 {[%clk 0:00:28]}  Kd7 {[%clk 0:01:10]} 36. a4 {[%clk 0:00:27]}  Rb1+ {[%clk 0:01:04]} 37. Rxb1 {[%clk 0:00:26]}  Bxb1 {[%clk 0:01:05]} 38. Kd2 {[%clk 0:00:26]}  e5 {[%clk 0:01:00]} 39. Nb5 {[%clk 0:00:24]}  Ba2 {[%clk 0:00:56]} 40. Ke3 {[%clk 0:00:22]}  Bb3 {[%clk 0:00:54]} 41. f4 {[%clk 0:00:16]}  f6 {[%clk 0:00:54]} 42. fxe5 {[%clk 0:00:15]}  fxe5 {[%clk 0:00:55]} 43. Na3 {[%clk 0:00:12]}  Bxa4 {[%clk 0:00:54]} 44. c4 {[%clk 0:00:12]}  Kd6 {[%clk 0:00:50]} 45. cxd5 {[%clk 0:00:12]}  Kxd5 {[%clk 0:00:51]} 46. Nb1 {[%clk 0:00:10]}  Bc6 {[%clk 0:00:48]} 47. Nc3+ {[%clk 0:00:09]}  Kc4 {[%clk 0:00:48]} 48. Ne2 {[%clk 0:00:07]}  a4 {[%clk 0:00:46]} 49. g4 {[%clk 0:00:07]}  a3 {[%clk 0:00:45]} 50. Nc1 {[%clk 0:00:06]}  Kc3 {[%clk 0:00:43]} 51. Ke2 {[%clk 0:00:05]}  Bb5+ {[%clk 0:00:41]} 52. Kd1 {[%clk 0:00:04]}  Bc4 {[%clk 0:00:42]} 53. h4 {[%clk 0:00:02]}  a2 {[%clk 0:00:41]} 54. Nxa2+ {[%clk 0:00:02]}  Bxa2 {[%clk 0:00:41]} 55. Ke2 {[%clk 0:00:03]}  Kd4 {[%clk 0:00:40]} 56. Kf3 {[%clk 0:00:04]}  Bd5+ {[%clk 0:00:40]} 57. Kg3 {[%clk 0:00:04]}  e4 {[%clk 0:00:41]} 58. Kf2 {[%clk 0:00:04]}  e3+ {[%clk 0:00:41]} 59. Ke2 {[%clk 0:00:05]}  Bc4+ {[%clk 0:00:41]} 60. Ke1 {[%clk 0:00:05]}  Ke4 {[%clk 0:00:40]} 61. g5 {[%clk 0:00:05]}  g6 {[%clk 0:00:39]} 62. h5 {[%clk 0:00:05]}  gxh5 {[%clk 0:00:39]} 63. g6 {[%clk 0:00:05]}  hxg6 {[%clk 0:00:39]} 64. Kd1 {[%clk 0:00:05]}  Kf3 {[%clk 0:00:39]} 65. Ke1 {[%clk 0:00:06]}  h4 {[%clk 0:00:39]} 66. Kd1 {[%clk 0:00:06]}  Kf2 {[%clk 0:00:39]} 67. Kc2 {[%clk 0:00:06]}  e2 {[%clk 0:00:39]} 0-1


[Site "https://www.chess.com"]

[Event "Titled Tuesday Blitz December 27 Early 2022"]
[White "Wickramasinghe, Minethma Lasandi"]
[Black "Ljukin, Sergei"]
[WhiteFideId "9966170"]
[BlackFideId "14102200"]
[WhiteElo "1483"]
[BlackElo "2362"]
[Result "0-1"]
[Round "02"]
[TimeControl "180+2"]
[Date "2022.12.27"]
[WhiteClock "0:00:13"]
[BlackClock "0:00:45"]

1. d4 {[%clk 0:03:00]}  d5 {[%clk 0:02:51]} 2. c4 {[%clk 0:02:59]}  c6 {[%clk 0:02:51]} 3. Bf4 {[%clk 0:02:56]}  Nf6 {[%clk 0:02:52]} 4. Nc3 {[%clk 0:02:55]}  dxc4 {[%clk 0:02:52]} 5. e3 {[%clk 0:02:52]}  b5 {[%clk 0:02:50]} 6. a4 {[%clk 0:02:48]}  b4 {[%clk 0:02:48]} 7. Na2 {[%clk 0:02:45]}  Nd5 {[%clk 0:02:22]} 8. Bg3 {[%clk 0:02:34]}  b3 {[%clk 0:02:06]} 9. Nc3 {[%clk 0:02:07]}  Nxc3 {[%clk 0:01:59]} 10. bxc3 {[%clk 0:02:08]}  Qa5 {[%clk 0:01:47]} 11. Qc1 {[%clk 0:02:03]}  Ba6 {[%clk 0:01:46]} 12. Nf3 {[%clk 0:01:55]}  Nd7 {[%clk 0:01:46]} 13. Nd2 {[%clk 0:01:40]}  Nb6 {[%clk 0:01:46]} 14. Bc7 {[%clk 0:01:28]}  e6 {[%clk 0:01:24]} 15. Bxc4 {[%clk 0:01:14]}  b2 {[%clk 0:01:10]} 16. Qxb2 {[%clk 0:01:09]}  Nxc4 {[%clk 0:01:10]} 17. Bxa5 {[%clk 0:00:37]}  Nxb2 {[%clk 0:01:10]} 18. Rb1 {[%clk 0:00:33]}  Nc4 {[%clk 0:01:08]} 19. Nxc4 {[%clk 0:00:33]}  Bxc4 {[%clk 0:01:08]} 20. Rb7 {[%clk 0:00:30]}  Bd6 {[%clk 0:01:07]} 21. Kd2 {[%clk 0:00:26]}  Ba6 {[%clk 0:01:06]} 22. Rb2 {[%clk 0:00:24]}  Kd7 {[%clk 0:01:07]} 23. Rhb1 {[%clk 0:00:23]}  Rhb8 {[%clk 0:01:06]} 24. g3 {[%clk 0:00:21]}  Rxb2+ {[%clk 0:01:06]} 25. Rxb2 {[%clk 0:00:21]}  Rb8 {[%clk 0:01:06]} 26. Bb4 {[%clk 0:00:20]}  Bc4 {[%clk 0:01:00]} 27. a5 {[%clk 0:00:18]}  c5 {[%clk 0:00:51]} 28. Ba3 {[%clk 0:00:14]}  Rxb2+ {[%clk 0:00:49]} 29. Bxb2 {[%clk 0:00:15]}  cxd4 {[%clk 0:00:45]} 30. cxd4 {[%clk 0:00:15]}  Kc6 {[%clk 0:00:45]} 31. Bc3 {[%clk 0:00:14]}  Kb5 {[%clk 0:00:45]} 32. Kc2 {[%clk 0:00:15]}  Bb4 {[%clk 0:00:45]} 33. Bxb4 {[%clk 0:00:13]}  Kxb4 {[%clk 0:00:45]} 0-1


[Site "https://www.chess.com"]

[Event "Titled Tuesday Blitz December 27 Early 2022"]
[White "Xu, Yi"]
[Black "Mihajlov, Sebastian"]
[WhiteFideId "8605564"]
[BlackFideId "1512110"]
[WhiteElo "2527"]
[BlackElo "2373"]
[Result "1-0"]
[Round "02"]
[TimeControl "180+2"]
[Date "2022.12.27"]
[WhiteClock "0:00:19"]
[BlackClock "0:00:08"]

1. e4 {[%clk 0:03:00]}  e5 {[%clk 0:03:00]} 2. Nf3 {[%clk 0:03:00]}  Nc6 {[%clk 0:03:00]} 3. Bc4 {[%clk 0:03:00]}  Bc5 {[%clk 0:03:00]} 4. O-O {[%clk 0:02:59]}  Nf6 {[%clk 0:03:00]} 5. d3 {[%clk 0:02:59]}  h6 {[%clk 0:02:59]} 6. c3 {[%clk 0:02:58]}  d6 {[%clk 0:03:00]} 7. Nbd2 {[%clk 0:02:57]}  a5 {[%clk 0:03:00]} 8. Re1 {[%clk 0:02:55]}  O-O {[%clk 0:03:00]} 9. h3 {[%clk 0:02:54]}  Re8 {[%clk 0:03:00]} 10. Nf1 {[%clk 0:02:51]}  Be6 {[%clk 0:02:59]} 11. Bb5 {[%clk 0:02:50]}  Bd7 {[%clk 0:02:54]} 12. Ng3 {[%clk 0:02:48]}  Ne7 {[%clk 0:02:35]} 13. Bxd7 {[%clk 0:02:42]}  Qxd7 {[%clk 0:02:36]} 14. d4 {[%clk 0:02:37]}  exd4 {[%clk 0:02:36]} 15. cxd4 {[%clk 0:02:37]}  Bb4 {[%clk 0:02:28]} 16. Bd2 {[%clk 0:02:21]}  Ng6 {[%clk 0:02:24]} 17. a3 {[%clk 0:02:19]}  Bxd2 {[%clk 0:02:24]} 18. Qxd2 {[%clk 0:02:20]}  a4 {[%clk 0:02:22]} 19. Rac1 {[%clk 0:02:15]}  Rad8 {[%clk 0:02:14]} 20. Qb4 {[%clk 0:02:13]}  b6 {[%clk 0:02:09]} 21. d5 {[%clk 0:02:11]}  Nf4 {[%clk 0:02:05]} 22. Qc3 {[%clk 0:02:02]}  Rc8 {[%clk 0:01:54]} 23. Nd4 {[%clk 0:02:02]}  Re5 {[%clk 0:01:19]} 24. Qf3 {[%clk 0:01:50]}  g5 {[%clk 0:01:11]} 25. Nc6 {[%clk 0:01:41]}  Ree8 {[%clk 0:01:10]} 26. Nf5 {[%clk 0:01:36]}  Kh7 {[%clk 0:01:10]} 27. Ncd4 {[%clk 0:00:58]}  Re5 {[%clk 0:01:06]} 28. Nc6 {[%clk 0:00:51]}  Ree8 {[%clk 0:01:04]} 29. Ng3 {[%clk 0:00:47]}  Ng8 {[%clk 0:00:45]} 30. Re3 {[%clk 0:00:44]}  Ne7 {[%clk 0:00:38]} 31. Kh2 {[%clk 0:00:41]}  Neg6 {[%clk 0:00:38]} 32. Nf5 {[%clk 0:00:32]}  Ne5 {[%clk 0:00:34]} 33. Qd1 {[%clk 0:00:25]}  Nxc6 {[%clk 0:00:23]} 34. Rxc6 {[%clk 0:00:26]}  Re5 {[%clk 0:00:21]} 35. Ng3 {[%clk 0:00:21]}  Rce8 {[%clk 0:00:16]} 36. Qxa4 {[%clk 0:00:21]}  h5 {[%clk 0:00:15]} 37. Qc2 {[%clk 0:00:20]}  h4 {[%clk 0:00:13]} 38. Rxc7 {[%clk 0:00:19]}  hxg3+ {[%clk 0:00:12]} 39. fxg3 {[%clk 0:00:19]}  Qb5 {[%clk 0:00:08]} 40. gxf4 {[%clk 0:00:19]}  gxf4 {[%clk 0:00:08]} 41. Rxf7+ {[%clk 0:00:19]}  Kh8 {[%clk 0:00:08]} 42. Rxf4 {[%clk 0:00:19]}  Rg8 {[%clk 0:00:08]} 43. Rh4+ {[%clk 0:00:18]}  Kg7 {[%clk 0:00:08]} 44. Rg3+ {[%clk 0:00:19]} 1-0


[Site "https://www.chess.com"]

[Event "Titled Tuesday Blitz December 27 Early 2022"]
[White "Yaran, Siar"]
[Black "Bluebaum, Matthias"]
[WhiteFideId "6323006"]
[BlackFideId "24651516"]
[WhiteElo "2288"]
[BlackElo "2669"]
[Result "0-1"]
[Round "02"]
[TimeControl "180+2"]
[Date "2022.12.27"]
[WhiteClock "0:00:07"]
[BlackClock "0:01:36"]

1. c4 {[%clk 0:03:00]}  e6 {[%clk 0:02:59]} 2. Nc3 {[%clk 0:03:00]}  d5 {[%clk 0:03:00]} 3. d4 {[%clk 0:03:01]}  Bb4 {[%clk 0:03:00]} 4. e3 {[%clk 0:02:59]}  Nf6 {[%clk 0:03:00]} 5. a3 {[%clk 0:02:58]}  Bxc3+ {[%clk 0:03:01]} 6. bxc3 {[%clk 0:02:58]}  c6 {[%clk 0:03:02]} 7. Nf3 {[%clk 0:02:55]}  O-O {[%clk 0:03:01]} 8. Bd3 {[%clk 0:02:52]}  b6 {[%clk 0:03:01]} 9. O-O {[%clk 0:02:49]}  Ba6 {[%clk 0:02:59]} 10. cxd5 {[%clk 0:02:45]}  cxd5 {[%clk 0:03:00]} 11. a4 {[%clk 0:02:44]}  Qc8 {[%clk 0:02:56]} 12. Ba3 {[%clk 0:02:41]}  Re8 {[%clk 0:02:56]} 13. Rc1 {[%clk 0:02:36]}  Bxd3 {[%clk 0:02:43]} 14. Qxd3 {[%clk 0:02:35]}  Nc6 {[%clk 0:02:44]} 15. c4 {[%clk 0:02:28]}  Qa6 {[%clk 0:02:44]} 16. Rfd1 {[%clk 0:01:55]}  Qxa4 {[%clk 0:02:36]} 17. cxd5 {[%clk 0:01:48]}  exd5 {[%clk 0:02:36]} 18. Ne5 {[%clk 0:01:21]}  Nxe5 {[%clk 0:02:29]} 19. dxe5 {[%clk 0:01:21]}  Rxe5 {[%clk 0:02:28]} 20. Bb2 {[%clk 0:01:20]}  Re6 {[%clk 0:02:09]} 21. Bxf6 {[%clk 0:01:16]}  Rxf6 {[%clk 0:02:10]} 22. Qxd5 {[%clk 0:01:17]}  Rf8 {[%clk 0:02:11]} 23. Ra1 {[%clk 0:01:17]}  Qc2 {[%clk 0:02:05]} 24. Rd2 {[%clk 0:01:17]}  Qc7 {[%clk 0:01:59]} 25. Qd7 {[%clk 0:01:01]}  Rc6 {[%clk 0:01:58]} 26. g3 {[%clk 0:00:57]}  a5 {[%clk 0:01:45]} 27. Rb1 {[%clk 0:00:42]}  Qxd7 {[%clk 0:01:39]} 28. Rxd7 {[%clk 0:00:41]}  Ra8 {[%clk 0:01:39]} 29. Rb7 {[%clk 0:00:11]}  a4 {[%clk 0:01:39]} 30. R1xb6 {[%clk 0:00:08]}  Rxb6 {[%clk 0:01:40]} 31. Rxb6 {[%clk 0:00:09]}  a3 {[%clk 0:01:40]} 32. Rb1 {[%clk 0:00:10]}  a2 {[%clk 0:01:41]} 33. Ra1 {[%clk 0:00:10]}  f5 {[%clk 0:01:42]} 34. Kf1 {[%clk 0:00:11]}  Kf7 {[%clk 0:01:42]} 35. Ke2 {[%clk 0:00:11]}  Ke6 {[%clk 0:01:43]} 36. Kd3 {[%clk 0:00:11]}  Kd5 {[%clk 0:01:43]} 37. f3 {[%clk 0:00:09]}  Ra3+ {[%clk 0:01:43]} 38. Kd2 {[%clk 0:00:09]}  Kc4 {[%clk 0:01:43]} 39. e4 {[%clk 0:00:07]}  fxe4 {[%clk 0:01:35]} 40. fxe4 {[%clk 0:00:08]}  Kb3 {[%clk 0:01:36]} 41. Kc1 {[%clk 0:00:07]} 0-1


[Site "https://www.chess.com"]